bitfinex-derivatives/quotes_BNBF0:USTF0_20260110
["timestamp","ask_amount","ask_price","bid_price","bid_amount"]
[1768023683440,0.19095436,911.32,910.14,0.71502892]
[1768023683641,0.19095436,911.32,910.15,0.71502892]
[1768023683841,0.19095436,911.32,910.16,0.71502892]
[1768023684041,0.19095436,911.32,910.17,0.71502892]
[1768023684342,0.19095436,911.32,910.18,0.71502892]
[1768023684537,0.19095436,911.32,910.19,0.71502892]
[1768023684742,0.19095436,911.32,910.2,0.71502892]
[1768023684942,0.19095436,911.32,909.91,0.81632787]
[1768023685144,0.19095436,911.32,909.92,0.71423585]
[1768023685340,0.19095436,911.32,909.93,0.71423585]
[1768023685644,0.19095436,911.32,909.94,0.71423585]
[1768023685843,0.19095436,911.32,909.95,0.71423585]
[1768023686044,0.19095436,911.32,909.96,0.71423585]
[1768023686245,0.19095436,911.32,909.97,0.71423585]
[1768023686440,0.19095436,911.32,909.98,0.71423585]
[1768023686645,0.19095436,911.32,909.99,0.71423585]
[1768023686845,0.19095436,911.32,910.0,0.71423585]
[1768023687047,0.19095436,911.32,910.01,0.71423585]
[1768023687247,0.19095436,911.32,910.02,0.71423585]
[1768023687548,0.19095436,911.32,910.03,0.71423585]
[1768023687844,0.19095436,911.32,910.04,0.71423585]
[1768023688044,0.19095436,911.32,910.05,0.71423585]
[1768023688242,0.19095436,911.32,910.06,0.71423585]
[1768023688446,0.19095436,911.32,910.07,0.71423585]
[1768023688646,0.19095436,911.32,910.08,0.71423585]
[1768023688845,0.19095436,911.32,910.09,0.71423585]
[1768023689047,0.19095436,911.32,910.1,0.71423585]
[1768023689246,0.19095436,911.32,910.11,0.71423585]
[1768023689443,0.19095436,911.32,910.12,0.71423585]
[1768023689743,0.19095436,911.32,910.13,0.71423585]
[1768023689943,0.19095436,911.32,910.14,0.71423585]
[1768023690246,0.19095436,911.32,910.15,0.71423585]
[1768023690449,0.19095436,911.32,910.16,0.71423585]
[1768023690643,0.19095436,911.32,910.17,0.71423585]
[1768023690842,0.19095436,911.32,910.18,0.71423585]
[1768023691045,0.19095436,911.32,910.19,0.71423585]
[1768023691244,0.19095436,911.32,910.2,0.71423585]
[1768023691447,0.19095436,911.32,910.21,0.71423585]
[1768023691649,0.19095436,911.32,909.94,0.81632787]
[1768023691650,0.19095436,911.32,910.22,0.71423585]
[1768023691847,0.19095436,911.32,910.23,0.71423585]
[1768023692050,0.19095436,911.32,909.94,0.81632787]
[1768023692246,0.19095436,911.32,909.95,0.7145841]
[1768023692451,0.19095436,911.32,909.96,0.7145841]
[1768023692648,0.19095436,911.32,909.97,0.7145841]
[1768023692951,0.19095436,911.32,909.98,0.7145841]
[1768023693251,0.19095436,911.32,909.99,0.7145841]
[1768023693451,0.19095436,911.32,910.0,0.7145841]
[1768023693651,0.19095436,911.32,910.01,0.7145841]
[1768023693851,0.19095436,911.32,910.02,0.7145841]
[1768023694050,0.19095436,911.32,910.03,0.7145841]
[1768023694253,0.19095436,911.32,910.04,0.7145841]
[1768023694548,0.19095436,911.32,910.05,0.7145841]
[1768023694748,0.19095436,911.32,910.06,0.7145841]
[1768023694951,0.19095436,911.32,910.07,0.7145841]
[1768023695154,0.19095436,911.32,910.08,0.7145841]
[1768023695348,0.19095436,911.32,910.09,0.7145841]
[1768023695548,0.19095436,911.32,910.1,0.7145841]
[1768023695752,0.19095436,911.32,910.11,0.7145841]
[1768023695950,0.19095436,911.32,910.12,0.7145841]
[1768023696152,0.19095436,911.32,910.13,0.7145841]
[1768023696350,0.19095436,911.32,910.14,0.7145841]
[1768023696554,0.19095436,911.32,910.15,0.7145841]
[1768023696754,0.19095436,911.32,910.16,0.7145841]
[1768023696954,0.19095436,911.32,910.17,0.7145841]
[1768023697252,0.19095436,911.32,910.18,0.7145841]
[1768023697451,0.19095436,911.32,909.97,0.81632787]
[1768023697452,0.19095436,911.32,910.19,0.7145841]
[1768023697750,0.19095436,911.32,910.2,0.7145841]
[1768023697952,0.19095436,911.32,910.21,0.7145841]
[1768023698155,0.19095436,911.32,910.22,0.7145841]
[1768023698356,0.19095436,911.32,910.23,0.7145841]
[1768023698556,0.19095436,911.32,910.24,0.7145841]
[1768023698752,0.19095436,911.32,910.25,0.7145841]
[1768023699053,0.19095436,911.32,910.26,0.7145841]
[1768023699254,0.19095436,911.32,910.27,0.7151197]
[1768023699456,0.19095436,911.32,909.98,0.81632787]
[1768023699751,0.19095436,911.32,909.99,0.71511977]
[1768023699956,0.19095436,911.32,910.0,0.71511977]
[1768023700156,0.19095436,911.32,910.01,0.71511977]
[1768023700353,0.19095436,911.32,910.02,0.71511977]
[1768023700556,0.19095436,911.32,910.03,0.71511977]
[1768023700757,0.19095436,911.32,910.04,0.71511977]
[1768023700958,0.19095436,911.32,910.05,0.71511977]
[1768023701155,0.19095436,911.32,910.06,0.71511977]
[1768023701355,0.19095436,911.32,910.07,0.71511977]
[1768023701556,0.19095436,911.32,910.08,0.71511977]
[1768023701859,0.19095436,911.32,910.09,0.71511977]
[1768023702059,0.19095436,911.32,910.1,0.71511977]
[1768023702256,0.19095436,911.32,910.11,0.71511977]
[1768023702559,0.19095436,911.32,910.12,0.71511977]
[1768023702856,0.19095436,911.32,910.13,0.71511977]
[1768023703056,0.19095436,911.32,910.14,0.71511977]
[1768023703359,0.19095436,911.32,910.15,0.71511977]
[1768023703555,0.19095436,911.32,910.16,0.71511977]
[1768023703760,0.19095436,911.32,910.17,0.71511977]
[1768023704059,0.19095436,911.32,910.18,0.71511977]
[1768023704257,0.19095436,911.32,910.19,0.71511977]
[1768023704460,0.19095436,911.32,910.2,0.71511977]
[1768023704656,0.19095436,911.32,910.21,0.71511977]
[1768023704961,0.19095436,911.32,910.22,0.71511977]
[1768023705260,0.19095436,911.32,910.23,0.71511977]
[1768023705460,0.19095436,911.32,910.24,0.71511977]
[1768023705661,0.19095436,911.32,910.25,0.71511977]
[1768023705856,0.19095436,911.32,910.26,0.71511977]
[1768023706158,0.19095436,911.32,910.0,0.81632787]
[1768023706159,0.19095436,911.32,910.27,0.71511977]
[1768023706358,0.19095436,911.32,910.28,0.71511977]
[1768023706560,0.19095436,911.32,910.29,0.71511977]
[1768023706760,0.19095436,911.32,910.3,0.71511977]
[1768023706960,0.19095436,911.32,910.0,0.81632787]
[1768023707160,0.19095436,911.32,910.01,0.71654347]
[1768023707360,0.19095436,911.32,910.02,0.71654347]
[1768023707559,0.19095436,911.32,910.03,0.71654347]
[1768023707758,0.19095436,911.32,910.04,0.71654347]
[1768023708060,0.19095436,911.32,910.05,0.71654347]
[1768023708263,0.19095436,911.32,910.06,0.71654347]
[1768023708463,0.19095436,911.32,910.07,0.71654347]
[1768023708663,0.19095436,911.32,910.08,0.71654347]
[1768023708962,0.19095436,911.32,910.09,0.71654347]
[1768023709158,0.19095436,911.32,910.1,0.71654347]
[1768023709359,0.19095436,911.32,910.11,0.71654347]
[1768023709559,0.19095436,911.32,910.12,0.71654347]
[1768023709763,0.19095436,911.32,910.13,0.71654347]
[1768023709964,0.19095436,911.32,910.14,0.71654347]
[1768023710161,0.19095436,911.32,910.15,0.71654347]
[1768023710365,0.19095436,911.32,910.16,0.71654347]
[1768023710562,0.19095436,911.32,910.17,0.71654347]
[1768023710766,0.19095436,911.32,910.18,0.71654347]
[1768023710966,0.19095436,911.32,910.19,0.71654347]
[1768023711166,0.19095436,911.32,910.2,0.71654347]
[1768023711362,0.19095436,911.32,910.21,0.71654347]
[1768023711564,0.19095436,911.32,910.22,0.71654347]
[1768023711762,0.19095436,911.32,910.23,0.71654347]
[1768023711966,0.19095436,911.32,910.24,0.71654347]
[1768023712167,0.19095436,911.32,910.25,0.71654347]
[1768023712467,0.19095436,911.32,910.26,0.71654347]
[1768023712763,0.19095436,911.32,910.27,0.71654347]
[1768023713066,0.19095436,911.32,910.28,0.71654347]
[1768023713264,0.19095436,911.32,910.29,0.71654347]
[1768023713468,0.19095436,911.32,910.3,0.71654347]
[1768023713668,0.19095436,911.32,910.31,0.71654347]
[1768023713868,0.19095436,911.32,910.32,0.71621807]
[1768023714063,0.19095436,911.32,910.33,0.71621807]
[1768023714268,0.19095436,911.32,910.34,0.71621807]
[1768023714464,0.19095436,911.32,910.35,0.71621807]
[1768023714668,0.19095436,911.32,910.36,0.71621807]
[1768023714871,0.19095436,911.32,910.37,0.71621807]
[1768023715065,0.19095436,911.32,910.38,0.71621807]
[1768023715270,0.19095436,911.32,910.39,0.71621807]
[1768023715470,0.19095436,911.32,910.4,0.71621807]
[1768023715770,0.19095436,911.32,910.41,0.71621807]
[1768023715969,0.19095436,911.32,910.42,0.71621807]
[1768023716170,0.19095436,911.32,910.43,0.71621807]
[1768023716470,0.19095436,911.32,910.44,0.71621807]
[1768023716671,0.19095436,911.32,910.45,0.71621807]
[1768023716872,0.19095436,911.32,910.46,0.71621807]
[1768023717073,0.19095436,911.32,910.47,0.71621807]
[1768023717270,0.19095436,911.32,910.48,0.71621807]
[1768023717469,0.19095436,911.32,910.49,0.71621807]
[1768023717769,0.19095436,911.32,910.5,0.71621807]
[1768023717969,0.19095436,911.32,910.51,0.71621807]
[1768023718270,0.19095436,911.32,910.52,0.71621807]
[1768023718472,0.19095436,911.32,910.53,0.71621807]
[1768023718673,0.19095436,911.32,910.54,0.71621807]
[1768023718869,0.19095436,911.32,910.55,0.71621807]
[1768023719171,0.19095436,911.32,910.27,0.81632787]
[1768023719374,0.19095436,911.32,910.28,0.71416857]
[1768023719568,0.19095436,911.32,910.29,0.71416857]
[1768023719773,0.19095436,911.32,910.3,0.71416857]
[1768023719971,0.19095436,911.32,910.31,0.71416857]
[1768023720171,0.19095436,911.32,910.32,0.71416857]
[1768023720371,0.19095436,911.32,910.33,0.71416857]
[1768023720574,0.19095436,911.32,910.34,0.71416857]
[1768023720771,0.19095436,911.32,910.35,0.71416857]
[1768023720970,0.19095436,911.32,910.36,0.71416857]
[1768023721172,0.19095436,911.32,910.37,0.71416857]
[1768023721375,0.19095436,911.32,910.38,0.71416857]
[1768023721575,0.19095436,911.32,910.39,0.71416857]
[1768023721873,0.19095436,911.32,910.4,0.71416857]
[1768023722176,0.19095436,911.32,910.41,0.71416857]
[1768023722376,0.19095436,911.32,909.99,1.507]
[1768023722377,0.19095436,911.32,910.42,0.71416857]
[1768023722576,0.19095436,911.32,910.43,0.71416857]
[1768023722772,0.19095436,911.32,910.44,0.71416857]
[1768023722973,0.19095436,911.32,910.45,0.71416857]
[1768023723173,0.19095436,911.32,910.46,0.71416857]
[1768023723376,0.19095436,911.32,910.47,0.71416857]
[1768023723575,0.19095436,911.32,910.48,0.71416857]
[1768023723776,0.19095436,911.32,910.19,0.81632787]
[1768023724076,0.19095436,911.32,910.2,0.71359013]
[1768023724274,0.19095436,911.32,910.21,0.71359013]
[1768023724479,0.19095436,911.32,910.22,0.71359013]
[1768023724677,0.19095436,911.32,910.23,0.71359013]
[1768023724978,0.19095436,911.32,910.24,0.71359013]
[1768023725178,0.19095436,911.32,910.25,0.71359013]
[1768023725374,0.19095436,911.32,910.26,0.71359013]
[1768023725676,0.19095436,911.32,910.27,0.71359013]
[1768023725875,0.19095436,911.32,910.28,0.71359013]
[1768023726079,0.19095436,911.32,910.29,0.71359013]
[1768023726379,0.19095436,911.32,910.3,0.71359013]
[1768023726675,0.19095436,911.32,910.31,0.71359013]
[1768023726880,0.19095436,911.32,910.32,0.71359013]
[1768023727180,0.19095436,911.32,910.33,0.71359013]
[1768023727379,0.19095436,911.32,910.34,0.71359013]
[1768023727574,0.19095436,911.32,910.35,0.71359013]
[1768023727779,0.19095436,911.32,910.36,0.71359013]
[1768023727980,0.19095436,911.32,910.37,0.71359013]
[1768023728278,0.19095436,911.32,910.38,0.71359013]
[1768023728479,0.19095436,911.32,910.39,0.71359013]
[1768023728679,0.19095436,911.32,910.4,0.71359013]
[1768023728879,0.19095436,911.32,910.41,0.71359013]
[1768023729078,0.19095436,911.32,910.42,0.71359013]
[1768023729278,0.19095436,911.32,910.43,0.71359013]
[1768023729479,0.19095436,911.32,910.44,0.71359013]
[1768023729680,0.19095436,911.32,910.09,0.81632787]
[1768023729879,0.19095436,911.32,910.1,0.71309808]
[1768023730077,0.19095436,911.32,910.11,0.71309808]
[1768023730282,0.19095436,911.32,910.12,0.71309808]
[1768023730479,0.19095436,911.32,910.13,0.71309808]
[1768023730678,0.19095436,911.32,910.14,0.71309808]
[1768023730877,0.19095436,911.32,910.15,0.71309808]
[1768023731081,0.19095436,911.32,910.16,0.71309808]
[1768023731380,0.19095436,911.32,910.17,0.71309808]
[1768023731581,0.19095436,911.32,910.18,0.71309808]
[1768023731777,0.19095436,911.32,910.19,0.71309808]
[1768023731981,0.19095436,911.32,910.2,0.71309808]
[1768023732182,0.19095436,911.32,910.21,0.71309808]
[1768023732382,0.19095436,911.32,910.22,0.71309808]
[1768023732582,0.19095436,911.32,910.23,0.71309808]
[1768023732784,0.19095436,911.32,910.24,0.71309808]
[1768023732983,0.19095436,911.32,910.25,0.71309808]
[1768023733183,0.19095436,911.32,910.26,0.71309808]
[1768023733380,0.19095436,911.32,910.27,0.71309808]
[1768023733583,0.19095436,911.32,910.28,0.71309808]
[1768023733783,0.19095436,911.32,910.29,0.71309808]
[1768023733984,0.19095436,911.32,910.3,0.71309808]
[1768023734278,0.19095436,911.32,910.31,0.71309808]
[1768023734479,0.19095436,911.32,910.32,0.71309808]
[1768023734681,0.19095436,911.32,910.14,0.81632787]
[1768023734682,0.19095436,911.32,910.33,0.71309808]
[1768023734881,0.19095436,911.32,910.34,0.71309808]
[1768023735184,0.19095436,911.32,910.35,0.71309808]
[1768023735384,0.19095436,911.32,910.36,0.71309808]
[1768023735586,0.19095436,911.32,910.37,0.71309808]
[1768023735886,0.19095436,911.32,910.38,0.71309808]
[1768023736080,0.19095436,911.32,910.39,0.71309808]
[1768023736282,0.19095436,911.32,910.4,0.71309808]
[1768023736479,0.19095436,911.32,910.41,0.71309808]
[1768023736685,0.19095436,911.32,910.42,0.71309808]
[1768023736884,0.19095436,911.32,910.43,0.71309808]
[1768023737080,0.19095436,911.32,910.44,0.71309808]
[1768023737281,0.19095436,911.32,910.45,0.71309808]
[1768023737581,0.19095436,911.32,910.46,0.71309808]
[1768023737779,0.19095436,911.32,910.19,0.81632787]
[1768023737780,0.19095436,911.32,910.47,0.71309808]
[1768023737981,0.19095436,911.32,910.15,0.81632787]
[1768023738183,0.19095436,911.32,910.16,0.7129844]
[1768023738381,0.19095436,911.32,910.17,0.7129844]
[1768023738581,0.19095436,911.32,910.18,0.7129844]
[1768023738782,0.19095436,911.32,910.19,0.7129844]
[1768023738980,0.19095436,911.32,910.2,0.7129844]
[1768023739183,0.19095436,911.32,910.21,0.7129844]
[1768023739386,0.19095436,911.32,910.22,0.7129844]
[1768023739685,0.19095436,911.32,910.23,0.7129844]
[1768023739881,0.19095436,911.32,910.24,0.7129844]
[1768023740186,0.19095436,911.32,910.25,0.7129844]
[1768023740380,0.19095436,911.32,910.26,0.7129844]
[1768023740681,0.19095436,911.32,910.27,0.7129844]
[1768023740884,0.19095436,911.32,910.28,0.7129844]
[1768023741185,0.19095436,911.32,910.29,0.7129844]
[1768023741385,0.19095436,911.32,910.3,0.7129844]
[1768023741580,0.19095436,911.32,910.31,0.7129844]
[1768023741785,0.19095436,911.32,910.32,0.7129844]
[1768023741986,0.19095436,911.32,910.33,0.7129844]
[1768023742181,0.19095436,911.32,910.34,0.7129844]
[1768023742483,0.19095436,911.32,910.35,0.7129844]
[1768023742684,0.19095436,911.32,910.36,0.7129844]
[1768023742887,0.19095436,911.32,910.37,0.7129844]
[1768023743187,0.19095436,911.32,910.38,0.7129844]
[1768023743487,0.19095436,911.32,910.39,0.7129844]
[1768023743686,0.19095436,911.32,910.1,0.81632787]
[1768023743986,0.19095436,911.32,910.11,0.71320161]
[1768023744183,0.19095436,911.32,910.12,0.71320161]
[1768023744389,0.19095436,911.32,910.13,0.71320161]
[1768023744682,0.19095436,911.32,910.14,0.71320161]
[1768023744887,0.19095436,911.32,910.15,0.71320161]
[1768023745087,0.19095436,911.32,910.16,0.71320161]
[1768023745287,0.19095436,911.32,910.17,0.71320161]
[1768023745486,0.19095436,911.32,910.18,0.71320161]
[1768023745689,0.19095436,911.32,910.19,0.71320161]
[1768023745892,0.19095436,911.32,910.2,0.71320161]
[1768023746191,0.19095436,911.32,910.21,0.71320161]
[1768023746390,0.19095436,911.32,910.22,0.71320161]
[1768023746589,0.19095436,911.32,910.23,0.71320161]
[1768023746790,0.19095436,911.32,910.24,0.71320161]
[1768023746992,0.19095436,911.32,910.25,0.71320161]
[1768023747188,0.19095436,911.32,910.26,0.71320161]
[1768023747487,0.19095436,911.32,910.27,0.71320161]
[1768023747688,0.19095436,911.32,910.28,0.71320161]
[1768023747992,0.19095436,911.32,910.29,0.71320161]
[1768023748287,0.19095436,911.32,910.3,0.71320161]
[1768023748486,0.19095436,911.32,910.31,0.71320161]
[1768023748686,0.19095436,911.32,910.32,0.71320161]
[1768023748891,0.19095436,911.32,910.33,0.71320161]
[1768023749092,0.19095436,911.32,910.34,0.71320161]
[1768023749389,0.19095436,911.32,910.35,0.71320161]
[1768023749588,0.19095436,911.32,910.36,0.71320161]
[1768023749790,0.19095436,911.32,910.37,0.71320161]
[1768023749993,0.19095436,911.32,910.38,0.71320161]
[1768023750194,0.19095436,911.32,910.09,0.81632787]
[1768023750391,0.19095436,911.32,910.1,0.71424392]
[1768023750596,0.19095436,911.32,910.11,0.71424392]
[1768023750793,0.19095436,911.32,910.12,0.71424392]
[1768023750991,0.19095436,911.32,910.13,0.71424392]
[1768023751195,0.19095436,911.32,910.14,0.71424392]
[1768023751496,0.19095436,911.32,910.15,0.71424392]
[1768023751696,0.19095436,911.32,910.16,0.71424392]
[1768023751897,0.19095436,911.32,910.17,0.71424392]
[1768023752097,0.19095436,911.32,910.18,0.71424392]
[1768023752298,0.19095436,911.32,910.19,0.71424392]
[1768023752494,0.19095436,911.32,910.2,0.71424392]
[1768023752797,0.19095436,911.32,910.21,0.71424392]
[1768023752998,0.19095436,911.32,910.22,0.71424392]
[1768023753298,0.19095436,911.32,910.23,0.71424392]
[1768023753499,0.19095436,911.32,910.24,0.71424392]
[1768023753698,0.19095436,911.32,910.25,0.71424392]
[1768023753898,0.19095436,911.32,910.26,0.71424392]
[1768023754096,0.19095436,911.32,910.27,0.71424392]
[1768023754302,0.19095436,911.32,910.28,0.71424392]
[1768023754498,0.19095436,911.32,910.29,0.71424392]
[1768023754699,0.19095436,911.32,910.3,0.71424392]
[1768023754898,0.19095436,911.32,910.31,0.71424392]
[1768023755200,0.19095436,911.32,910.32,0.71424392]
[1768023755401,0.19095436,911.32,910.33,0.71424392]
[1768023755601,0.19095436,911.32,910.34,0.71424392]
[1768023755802,0.19095436,911.32,910.35,0.71424392]
[1768023756096,0.19095436,911.32,910.36,0.71424392]
[1768023756300,0.19095436,911.32,910.37,0.71424392]
[1768023756502,0.19095436,911.32,910.38,0.71424392]
[1768023756703,0.19095436,911.32,910.39,0.71424392]
[1768023756998,0.19095436,911.32,910.11,1.596]
[1768023757200,0.19095436,911.32,910.12,0.71479555]
[1768023757399,0.19095436,911.32,910.13,0.71479555]
[1768023757698,0.19095436,911.32,910.14,0.71479555]
[1768023757908,0.19095436,911.32,910.15,0.71479555]
[1768023758108,0.19095436,911.32,910.16,0.71479555]
[1768023758405,0.19095436,911.32,910.17,0.71479555]
[1768023758610,0.19095436,911.32,910.18,0.71479555]
[1768023758805,0.19095436,911.32,910.19,0.71479555]
[1768023759005,0.19095436,911.32,910.2,0.71479555]
[1768023759205,0.19095436,911.32,910.21,0.71479555]
[1768023759407,0.19095436,911.32,910.22,0.71479555]
[1768023759606,0.19095436,911.32,910.23,0.71479555]
[1768023759811,0.19095436,911.32,910.24,0.71479555]
[1768023760009,0.19095436,911.32,910.25,0.71479555]
[1768023760208,0.19095436,911.32,910.26,0.71479555]
[1768023760411,0.19095436,911.32,910.27,0.71479555]
[1768023760610,0.19095436,911.32,910.28,0.71479555]
[1768023760810,0.19095436,911.32,910.29,0.71479555]
[1768023761009,0.19095436,911.32,910.3,0.71479555]
[1768023761211,0.19095436,911.32,910.31,0.71479555]
[1768023761412,0.19095436,911.32,910.32,0.71479555]
[1768023761712,0.19095436,911.32,910.33,0.71479555]
[1768023761913,0.19095436,911.32,910.34,0.71479555]
[1768023762207,0.19095436,911.32,910.11,2.41232787]
[1768023762208,0.19095436,911.32,910.35,0.71479555]
[1768023762413,0.19095436,911.32,910.36,0.71479555]
[1768023762711,0.19095436,911.32,910.37,0.71479555]
[1768023762912,0.19095436,911.32,910.38,0.71479555]
[1768023763113,0.19095436,911.32,910.39,0.71479555]
[1768023763408,0.19095436,911.32,910.4,0.71479555]
[1768023763612,0.19095436,911.32,910.41,0.71479555]
[1768023763809,0.19095436,911.32,910.42,0.71479555]
[1768023764008,0.19095436,911.32,910.13,0.81632787]
[1768023764209,0.19095436,911.32,910.14,0.7120718]
[1768023764409,0.19095436,911.32,910.15,0.7120718]
[1768023764613,0.19095436,911.32,910.16,0.7120718]
[1768023764913,0.19095436,911.32,910.17,0.7120718]
[1768023765113,0.19095436,911.32,910.18,0.7120718]
[1768023765308,2.74803267,912.08,910.19,0.7120718]
[1768023765614,0.19102039,911.09,910.2,0.7120718]
[1768023765914,2.74803267,912.08,910.21,0.7120718]
[1768023766110,0.19101935,911.09,910.22,0.7120718]
[1768023766310,0.19101935,911.09,910.23,0.7120718]
[1768023766511,2.74803267,912.08,910.24,0.7120718]
[1768023766710,0.19101515,911.12,910.25,0.7120718]
[1768023767013,2.74803267,912.08,910.26,0.7120718]
[1768023767214,0.19101358,911.12,910.27,0.7120718]
[1768023767409,2.74803267,912.08,910.28,0.7120718]
[1768023767614,2.74803267,912.07,910.29,0.7120718]
[1768023767914,0.19101253,911.12,910.3,0.7120718]
[1768023768210,0.19101201,911.63,910.31,0.7120718]
[1768023768412,0.19101201,911.63,910.32,0.7120718]
[1768023768613,0.19101201,911.63,910.33,0.7120718]
[1768023768814,0.19101201,911.63,910.34,0.7120718]
[1768023769013,0.19101201,911.63,910.35,0.7120718]
[1768023769214,0.19101201,911.63,910.36,0.7120718]
[1768023769411,0.19101201,911.63,910.37,0.7120718]
[1768023769610,0.19101201,911.63,910.38,0.7120718]
[1768023769810,0.19101201,911.63,910.39,0.7120718]
[1768023770114,0.19101201,911.63,910.4,0.7120718]
[1768023770314,0.19101201,911.63,910.41,0.7120718]
[1768023770614,0.19101201,911.63,910.42,0.7120718]
[1768023770814,0.19101201,911.63,910.43,0.7120718]
[1768023771014,0.19101201,911.63,910.44,0.7120718]
[1768023771213,0.19101201,911.63,910.45,0.7120718]
[1768023771412,0.19101201,911.63,910.46,0.7120718]
[1768023771610,0.19101201,911.63,910.47,0.7120718]
[1768023771911,0.19101201,911.63,910.48,0.7120718]
[1768023772112,0.19101201,911.63,910.49,0.7120718]
[1768023772414,0.19101201,911.63,910.5,0.7120718]
[1768023772713,0.19101201,911.63,910.51,0.7120718]
[1768023772911,0.19101201,911.63,910.52,0.7120718]
[1768023773116,0.19101201,911.63,910.53,0.7120718]
[1768023773317,0.19101201,911.63,910.54,0.7120718]
[1768023773517,0.19101201,911.63,910.34,1.594]
[1768023773718,0.19101201,911.63,910.35,0.71285561]
[1768023773914,0.19101201,911.63,910.36,0.71285561]
[1768023774113,0.19101201,911.63,910.37,0.71285561]
[1768023774315,0.19101201,911.63,910.38,0.71285561]
[1768023774514,0.19101201,911.63,910.39,0.71285561]
[1768023774719,0.19101201,911.63,910.4,0.71285561]
[1768023774920,0.19101201,911.63,910.41,0.71285561]
[1768023775120,0.19101201,911.63,910.42,0.71285561]
[1768023775420,0.19101201,911.63,910.43,0.71285561]
[1768023775621,0.19101201,911.63,910.44,0.71285561]
[1768023775820,0.19101201,911.63,910.45,0.71285561]
[1768023776116,0.19101201,911.63,910.46,0.71285561]
[1768023776317,0.19101201,911.63,910.47,0.71285561]
[1768023776518,0.19101201,911.63,910.48,0.71285561]
[1768023776721,0.19101201,911.63,910.49,0.71285561]
[1768023776920,0.19101201,911.63,910.5,0.71285561]
[1768023777120,0.19101201,911.63,910.51,0.71285561]
[1768023777416,0.19101201,911.63,910.52,0.71285561]
[1768023777620,0.19101201,911.63,910.34,1.594]
[1768023777621,0.19101201,911.63,910.53,0.71285561]
[1768023777820,0.19101201,911.63,910.54,0.71285561]
[1768023778020,0.19101201,911.63,910.34,1.594]
[1768023778218,0.19101201,911.63,910.35,0.71285082]
[1768023778418,0.19101201,911.63,910.36,0.71285082]
[1768023778616,0.19101201,911.63,910.37,0.71285082]
[1768023778819,0.19101201,911.63,910.38,0.71285082]
[1768023779019,0.19101201,911.63,910.39,0.71285082]
[1768023779220,0.19101201,911.63,910.4,0.71285082]
[1768023779418,0.19101201,911.63,910.41,0.71285082]
[1768023779719,0.19101201,911.63,910.42,0.71285082]
[1768023779916,0.19101201,911.63,910.43,0.71285082]
[1768023780120,0.19101201,911.63,910.44,0.71285082]
[1768023780321,0.19101201,911.63,910.45,0.71285082]
[1768023780621,0.19101201,911.63,910.46,0.71285082]
[1768023780919,0.19101201,911.63,910.47,0.71285082]
[1768023781121,0.19101201,911.63,910.34,1.594]
[1768023781318,0.19101201,911.63,910.35,0.71301899]
[1768023781522,0.19101201,911.63,910.36,0.71301899]
[1768023781722,0.19101201,911.63,910.37,0.71301899]
[1768023781921,0.19101201,911.63,910.38,0.71301899]
[1768023782223,0.19101201,911.63,910.39,0.71301899]
[1768023782424,0.19101201,911.63,910.4,0.71301899]
[1768023782620,0.19101201,911.63,910.41,0.71301899]
[1768023782824,0.19101201,911.63,910.42,0.71301899]
[1768023783024,0.19101201,911.63,910.43,0.71301899]
[1768023783225,0.19101201,911.63,910.44,0.71301899]
[1768023783525,0.19101201,911.63,910.45,0.71301899]
[1768023783827,0.19101201,911.63,910.46,0.71301899]
[1768023784024,0.19101201,911.63,910.47,0.71301899]
[1768023784222,0.19101201,911.63,910.48,0.71301899]
[1768023784427,0.19101201,911.63,910.34,1.594]
[1768023784628,0.19101201,911.63,910.35,0.71367887]
[1768023784825,0.19101201,911.63,910.36,0.71367887]
[1768023785030,0.19101201,911.63,910.37,0.71367887]
[1768023785226,0.19101201,911.63,910.38,0.71367887]
[1768023785426,0.19101201,911.63,910.39,0.71367887]
[1768023785630,0.19101201,911.63,910.4,0.71367887]
[1768023785825,0.19101201,911.63,910.41,0.71367887]
[1768023786028,0.19101201,911.63,910.42,0.71367887]
[1768023786228,0.19101201,911.63,910.43,0.71367887]
[1768023786428,0.19101201,911.63,910.44,0.71367887]
[1768023786729,0.19101201,911.63,910.45,0.71367887]
[1768023786928,0.19101201,911.63,910.46,0.71367887]
[1768023787129,0.19101201,911.63,910.47,0.71367887]
[1768023787328,0.19101201,911.63,910.48,0.71367887]
[1768023787529,0.19101201,911.63,910.34,1.594]
[1768023787728,0.19101201,911.63,910.35,0.71374919]
[1768023787929,0.19101201,911.63,910.36,0.71374919]
[1768023788227,0.19101201,911.63,910.37,0.71374919]
[1768023788430,0.19101201,911.63,910.34,1.594]
[1768023790134,0.19101201,911.63,910.38,0.81632787]
[1768023790335,0.19101201,911.63,910.4,0.81632787]
[1768023790532,0.19101201,911.63,910.41,0.71341632]
[1768023790736,0.19101201,911.63,910.42,0.71341632]
[1768023791033,0.19101201,911.63,910.43,0.71341632]
[1768023791238,0.19101201,911.63,910.44,0.71341632]
[1768023791437,0.19101201,911.63,910.45,0.71341632]
[1768023791634,0.19101201,911.63,910.46,0.71341632]
[1768023791937,0.19101201,911.63,910.47,0.71341632]
[1768023792134,0.19101201,911.63,910.33,0.81632787]
[1768023792135,0.19101201,911.63,910.48,0.71341632]
[1768023792339,0.19101201,911.63,910.49,0.71341632]
[1768023792533,0.19101201,911.63,910.5,0.71341632]